[Event "22nd Indian Women chT 2025"]
[Site "Gujarat"]
[Date "2025.03.06"]
[Round "2.11"]
[White "Kale Shruti"]
[Black "Sandhya Goli"]
[Result "1/2-1/2"]
[Annotator "NA RC"]
[ECO "B59"]
[WhiteElo "1853"]
[BlackElo "1896"]
[PlyCount "93"]
[EventDate "2025.03.03"]
[EventCountry "IND"]
[SourceTitle "playchess.com"]
[Source "ChessBase"]
[SourceQuality "1"]
[TimeControl "5400+30"]

1. e4 {[%emt 0:00:05]} c5 {[%emt 0:10:11]} 2. Nf3 {[%emt 0:00:24]} d6 {[%emt 0:00:15]} 3. d4 {[%emt 0:00:18]} cxd4 {[%emt 0:00:08]} 4. Nxd4 {[%emt 0:00:11]} Nf6 {[%emt 0:00:17]} 5. Nc3 {[%emt 0:00:12]} Nc6 {[%emt 0:01:00]} 6. Be2 {[%emt 0:04:14]} e5 {[%emt 0:00:57]} 7. Nb3 {[%emt 0:04:09]} Be7 {[%emt 0:02:45]} 8. Be3 {[%emt 0:01:54]} Be6 {[%emt 0:03:13]} 9. O-O {[%emt 0:02:47]} O-O {[%emt 0:03:57]} 10. Kh1 {[%emt 0:07:22]} d5 {[%emt 0:10:31]} 11. exd5 {[%emt 0:02:06]} Nxd5 {[%emt 0:00:07]} 12. Nxd5 {[%emt 0:01:08]} Qxd5 {[%emt 0:01:08]} 13. Qxd5 {[%emt 0:05:06]} Bxd5 {[%emt 0:00:05]} 14. c4 {[%emt 0:01:29]} Be6 {[%emt 0:02:00]} 15. Nc5 {[%emt 0:06:24]} Bxc5 {[%emt 0:04:30]} 16. Bxc5 {[%emt 0:00:03]} Rfd8 {[%emt 0:02:38]} 17. Rfd1 {[%emt 0:07:08]} Rac8 {[%emt 0:09:38]} 18. b3 {[%emt 0:09:50]} b6 {[%emt 0:06:58]} 19. Be3 {[%emt 0:03:28]} f5 {[%emt 0:06:22]} 20. g3 {[%emt 0:08:50]} Nb4 {[%emt 0:06:55]} 21. Rdc1 {[%emt 0:09:55]} Nd3 {[%emt 0:04:07]} 22. Bxd3 {[%emt 0:05:17]} Rxd3 {[%emt 0:00:02]} 23. Rd1 {[%emt 0:00:21]} Rxd1+ {[%emt 0:05:12]} 24. Rxd1 {[%emt 0:00:06]} Kf7 {[%emt 0:00:14]} 25. Kg1 {[%emt 0:01:25]} h6 {[%emt 0:00:38]} 26. h4 {[%emt 0:01:17]} Ke7 {[%emt 0:01:53]} 27. Kf1 {[%emt 0:03:32]} Rd8 {[%emt 0:02:06]} 28. Rxd8 {[%emt 0:02:14]} Kxd8 {[%emt 0:00:02]} 29. Ke2 {[%emt 0:02:52]} h5 {[%emt 0:04:08]} 30. Kd3 {[%emt 0:05:55]} Kd7 {[%emt 0:01:26]} 31. Kc3 {[%emt 0:01:30]} Kc6 {[%emt 0:00:41]} 32. a3 {[%emt 0:00:39]} a6 {[%emt 0:00:58]} 33. a4 {[%emt 0:01:57]} b5 {[%emt 0:04:05]} 34. axb5+ {[%emt 0:00:45]} axb5 {[%emt 0:00:07]} 35. Kb4 {[%emt 0:00:34]} bxc4 {[%emt 0:00:17]} 36. bxc4 {[%emt 0:00:14]} g6 {[%emt 0:00:52]} 37. Bd2 {[%emt 0:00:58]} f4 {[%emt 0:01:23]} 38. gxf4 {[%emt 0:00:32]} exf4 {[%emt 0:00:04]} 39. Bxf4 {[%emt 0:00:18]} Bf5 {[%emt 0:00:08]} 40. Kc3 {[%emt 0:00:53]} Bb1 {[%emt 0:00:51]} 41. Kd4 {[%emt 0:00:00]} Bf5 {[%emt 0:00:15]} 42. Bd2 {[%emt 0:00:13]} Bb1 {[%emt 0:00:17]} 43. Bf4 {[%emt 0:00:51]} Bf5 {[%emt 0:00:05]} 44. Bd2 {[%emt 0:00:51]} Bb1 {[%emt 0:00:08]} 45. Bf4 {[%emt 0:00:49]} Bf5 {[%emt 0:00:13]} 46. Bd2 {[%emt 0:00:25]} Bb1 {[%emt 0:00:16]} 47. Bc1 {[%emt 0:00:23]} 1/2-1/2

[Event "22nd Indian Women chT 2025"]
[Site "Gujarat"]
[Date "2025.03.06"]
[Round "2.12"]
[White "Niharika Challa"]
[Black "Gawande Devanshi"]
[Result "0-1"]
[Annotator "RC"]
[ECO "B75"]
[WhiteElo "2072"]
[BlackElo "1527"]
[PlyCount "78"]
[EventDate "2025.03.03"]
[EventCountry "IND"]
[SourceTitle "playchess.com"]
[Source "ChessBase"]
[SourceQuality "1"]
[TimeControl "5400+30"]

1. e4 {[%emt 0:00:19]} c5 {[%emt 0:00:19]} 2. Nf3 {[%emt 0:00:09]} d6 {[%emt 0:00:13]} 3. d4 {[%emt 0:00:05]} cxd4 {[%emt 0:00:08]} 4. Nxd4 {[%emt 0:00:05]} Nf6 {[%emt 0:00:17]} 5. Nc3 {[%emt 0:00:05]} g6 {[%emt 0:00:49]} 6. Bc4 {[%emt 0:02:29]} Bg7 {[%emt 0:00:53]} 7. Bb3 {[%emt 0:00:13]} Nc6 {[%emt 0:00:51]} 8. f3 {[%emt 0:06:50]} Bd7 {[%emt 0:00:48]} 9. Be3 {[%emt 0:00:04]} Rc8 {[%emt 0:01:39]} 10. Qd2 {[%emt 0:00:04]} h5 {[%emt 0:01:28]} 11. O-O-O {[%emt 0:00:09]} Ne5 {[%emt 0:00:33]} 12. Kb1 {[%emt 0:00:04]} a6 {[%emt 0:00:34]} 13. h3 {[%emt 0:00:56]} b5 {[%emt 0:04:16]} 14. Rhf1 {[%emt 0:05:06]} Nc4 {[%emt 0:03:11]} 15. Bxc4 {[%emt 0:00:05]} Rxc4 {[%emt 0:01:27]} 16. g4 {[%emt 0:08:02]} O-O {[%emt 0:04:54]} 17. Nce2 {[%emt 0:17:55]} a5 {[%emt 0:14:41]} 18. Bg5 {[%emt 0:04:03]} Nh7 {[%emt 0:16:24]} 19. gxh5 {[%emt 0:16:21]} Nxg5 {[%emt 0:01:59]} 20. Qxg5 {[%emt 0:01:10]} Rc5 {[%emt 0:11:58]} 21. Qg2 {[%emt 0:04:18]} Rxh5 {[%emt 0:02:36]} 22. Rh1 {[%emt 0:02:03]} e6 {[%emt 0:08:43]} 23. f4 {[%emt 0:07:04]} e5 {[%emt 0:05:46]} 24. Nf3 {[%emt 0:07:52]} exf4 {[%emt 0:01:35]} 25. c3 {[%emt 0:06:41]} Qe7 {[%emt 0:03:00]} 26. Nd2 {[%emt 0:01:06]} Rg5 {[%emt 0:03:33]} 27. Qf3 {[%emt 0:00:58]} b4 {[%emt 0:00:30]} 28. cxb4 {[%emt 0:00:49]} Rb8 {[%emt 0:01:37]} 29. Nxf4 {[%emt 0:01:13]} Rxb4 {[%emt 0:00:47]} 30. Nd3 {[%emt 0:00:30]} Rb8 {[%emt 0:01:28]} 31. Nc4 {[%emt 0:03:07]} Bc6 {[%emt 0:02:36]} 32. Rhe1 {[%emt 0:00:39]} Bb5 {[%emt 0:01:33]} 33. Rc1 {[%emt 0:01:06]} Qb7 {[%emt 0:01:59]} 34. Re2 {[%emt 0:01:07]} Bxc4 {[%emt 0:01:13]} 35. Rxc4 {[%emt 0:00:07]} Qb5 {[%emt 0:00:35]} 36. Rcc2 {[%emt 0:02:30]} Rg1+ {[%emt 0:00:45]} 37. Nc1 {[%emt 0:00:12]} Bh6 {[%emt 0:00:31]} 38. Rf2 {[%emt 0:00:17]} Qxb2+ {[%emt 0:00:54]} 39. Rxb2 {[%emt 0:01:01]} Rxc1# {[%emt 0:00:13]} 0-1

[Event "22nd Indian Women chT 2025"]
[Site "Gujarat"]
[Date "2025.03.06"]
[Round "2.13"]
[White "Sahana Shainsha"]
[Black "Narahari Geethika Hasini"]
[Result "1/2-1/2"]
[Annotator "NA RC"]
[ECO "A28"]
[WhiteElo "1782"]
[BlackElo "1857"]
[PlyCount "59"]
[EventDate "2025.03.03"]
[EventCountry "IND"]
[SourceTitle "playchess.com"]
[Source "ChessBase"]
[SourceQuality "1"]
[TimeControl "5400+30"]

1. c4 {[%emt 0:00:04]} e5 {[%emt 0:11:28]} 2. Nc3 {[%emt 0:00:11]} Nf6 {[%emt 0:00:14]} 3. Nf3 {[%emt 0:00:13]} Nc6 {[%emt 0:00:25]} 4. e4 {[%emt 0:00:21]} Bb4 {[%emt 0:00:10]} 5. d3 {[%emt 0:00:08]} d6 {[%emt 0:00:31]} 6. h3 {[%emt 0:00:52]} Bc5 {[%emt 0:04:34]} 7. Be2 {[%emt 0:01:14]} h6 {[%emt 0:01:47]} 8. O-O {[%emt 0:03:13]} Be6 {[%emt 0:01:29]} 9. Be3 {[%emt 0:01:35]} Qd7 {[%emt 0:02:10]} 10. Nh2 {[%emt 0:07:38]} g5 {[%emt 0:01:53]} 11. Nd5 {[%emt 0:01:18]} Bxd5 {[%emt 0:00:47]} 12. cxd5 {[%emt 0:01:56]} Nd4 {[%emt 0:00:22]} 13. Ng4 {[%emt 0:15:58]} Nxe2+ {[%emt 0:00:26]} 14. Qxe2 {[%emt 0:00:07]} Nxg4 {[%emt 0:00:09]} 15. Qxg4 {[%emt 0:01:12]} Qxg4 {[%emt 0:00:48]} 16. hxg4 {[%emt 0:00:07]} b6 {[%emt 0:02:00]} 17. a3 {[%emt 0:02:59]} a5 {[%emt 0:01:53]} 18. b4 {[%emt 0:09:01]} Bxe3 {[%emt 0:00:21]} 19. fxe3 {[%emt 0:00:06]} axb4 {[%emt 0:01:11]} 20. axb4 {[%emt 0:00:13]} Ke7 {[%emt 0:00:13]} 21. Kh2 {[%emt 0:04:40]} f6 {[%emt 0:00:52]} 22. Kg3 {[%emt 0:00:37]} Kf7 {[%emt 0:00:42]} 23. Rfc1 {[%emt 0:10:11]} Rxa1 {[%emt 0:00:19]} 24. Rxa1 {[%emt 0:00:07]} Ke7 {[%emt 0:00:09]} 25. b5 {[%emt 0:01:47]} Kd7 {[%emt 0:01:33]} 26. Kf3 {[%emt 0:02:34]} Rf8 {[%emt 0:01:17]} 27. Rh1 {[%emt 0:00:36]} Rh8 {[%emt 0:00:04]} 28. Ra1 {[%emt 0:00:05]} Rf8 {[%emt 0:00:17]} 29. Rh1 {[%emt 0:00:25]} Rh8 {[%emt 0:00:02]} 30. Ra1 {[%emt 0:00:05]} 1/2-1/2

[Event "22nd Indian Women chT 2025"]
[Site "Gujarat"]
[Date "2025.03.06"]
[Round "2.14"]
[White "Saranya Devi Narahari"]
[Black "Saranya, J."]
[Result "0-1"]
[Annotator "TA"]
[ECO "B06"]
[WhiteElo "1843"]
[BlackElo "2093"]
[PlyCount "149"]
[EventDate "2025.03.03"]
[EventCountry "IND"]
[SourceTitle "playchess.com"]
[Source "ChessBase"]
[SourceQuality "1"]
[TimeControl "5400+30"]

{[%evp 9,149,37,87,47,112,98,125,99,93,70,114,81,222,207,191,72,152,61,68,39,203,107,118,98,78,81,79,95,152,150,161,102,115,103,112,54,59,27,39,21,31,31,21,15,94,88,179,70,64,0,0,0,0,0,0,0,0,0,0,0,0,-13,0,-95,-90,-94,-92,-117,-100,-101,-100,-99,-89,-97,-83,-83,-80,-83,-41,-83,-80,-231,-231,-241,-231,-211,-228,-208,-179,-190,-199,-238,-96,-175,-59,-84,-90,-351,-43,-161,-83,-316,-110,-845,-734,-4594,-5356,-1873,-4289,-1850,-136,-29961,-29962,-29967,-29966,-29967,-29970,-29970,-29971,-29971,-29972,-29973,-29974,-29973,-29975,-29974,-29976,-29975,-29976,-29979,-29980,-29980,-29981,-29982,-29983,-29990,-29990,-29990,-29991,-29991,-29992,-29993]} 1. e4 {[%emt 0:11:30]} g6 {[%emt 0:00:59]} 2. d4 {[%emt 0:00:25]} Bg7 {[%emt 0:00:11]} 3. Nc3 {[%emt 0:00:28]} d6 {[%emt 0:00:14]} 4. Be3 {[%emt 0:00:26]} Nd7 {[%emt 0:03:56]} 5. Qd2 {[%emt 0:00:57]} e5 {[%emt 0:03:15]} (5... c6 $14) 6. f4 {[%emt 0:08:16] B06: Modern Defence.} Ne7 {[%emt 0:23:46]} (6... Ngf6 $14) 7. Nf3 {[%emt 0:02:50]} O-O {[%emt 0:01:36]} 8. O-O-O {[%emt 0:02:31] White is better.} exf4 {[%emt 0:07:18]} 9. Bxf4 {[%emt 0:00:18]} Nc6 {[%emt 0:00:30]} 10. Bg5 $146 {[%emt 0:08:40]} (10. Bh6 a6 11. g4 Re8 12. Qf4 Qf6 13. Qg3 Bxh6+ 14. g5 Bxg5+ 15. Nxg5 h6 16. Nf3 {1-0 Hilova,V (1732)-Goltsev,S (1800) Nizhnij Novgorod Region-ch 2012}) 10... Bf6 {[%emt 0:04:13]} (10... f6 $16 {might work better.}) 11. h4 $1 $18 {[%emt 0:01:25]} Nb6 {[%emt 0:10:13] [#]} 12. e5 {[%emt 0:07:45]} dxe5 $16 {[%emt 0:05:58]} 13. Ne4 {[%emt 0:00:22] White sacrificed a pawn} (13. d5 $1 $16 Nd4 14. Nxe5) 13... Be7 $14 {[%emt 0:01:53]} 14. d5 {[%emt 0:15:54]} Nd4 {[%emt 0:05:02]} 15. Nxd4 {[%emt 0:00:44]} (15. Nxe5 $18 {Bxe7 would now be deadly.} Nf5 16. Bxe7 (16. g4 Nd6 $11) 16... Qxe7 17. Ng4) 15... exd4 $16 {[%emt 0:00:04]} 16. Qxd4 {[%emt 0:12:45]} f6 {[%emt 0:00:21]} 17. Bh6 {[%emt 0:00:07][%cal Oh4h5]} Rf7 {[%emt 0:00:03]} 18. c4 {[%emt 0:05:23]} c5 {[%emt 0:04:31]} 19. Qe3 {[%emt 0:02:37][%cal Oh4h5]} Bf5 {[%emt 0:05:06]} 20. Bd3 {[%emt 0:00:39]} (20. Nxc5 Rc8 21. b4 (21. Nxb7 Nxc4 22. Qc3 Qc7 $19) 21... Bxc5 22. bxc5 Nd7 $16) (20. h5 $1 $18) 20... Bf8 {[%emt 0:03:47]} 21. Bxf8 {[%emt 0:03:23]} (21. Nxc5 Bxd3 22. Bxf8 Bxc4 $19) 21... Qxf8 {[%emt 0:00:10]} 22. h5 {[%emt 0:02:11]} (22. Nxc5 $6 Bxd3 23. Nxd3 Nxc4 $11) (22. Qf4 $16) 22... Re8 $1 $14 {[%emt 0:00:48]} 23. hxg6 {[%emt 0:02:10]} Bxg6 {[%emt 0:00:05]} 24. Qg3 {[%emt 0:02:20]} Nxc4 {[%emt 0:08:38]} 25. Bxc4 {[%emt 0:01:42]} Rxe4 {[%emt 0:00:03]} 26. Bd3 {[%emt 0:00:54]} Rd4 {[%emt 0:02:42]} (26... Re5 $11) 27. Bxg6 $16 {[%emt 0:02:16]} hxg6 {[%emt 0:01:31]} (27... Rxd1+ $16 28. Kxd1 hxg6) 28. Qxg6+ {[%emt 0:01:59] White attacks} (28. Rxd4 $18 {Intending Rdh4 and mate.} cxd4 29. Qh3 (29. Qxg6+ Qg7 $18)) 28... Qg7 $14 {[%emt 0:00:42]} 29. Qc2 {[%emt 0:01:09]} ({White should play} 29. Qh5 $1 $14) 29... Qg5+ $11 {[%emt 0:03:56]} 30. Kb1 {[%emt 0:00:10]} Rxd5 {[%emt 0:01:11]} 31. Rxd5 {[%emt 0:02:42]} Qxd5 {[%emt 0:00:02][%mdl 4096] Endgame KQR-KQR. Black is a pawn up.} 32. Qg6+ {[%emt 0:00:14]} Kf8 {[%emt 0:00:02]} 33. Re1 {[%emt 0:00:38]} Qd2 {[%emt 0:01:27] Repels Qh6+} 34. Qg3 {[%emt 0:00:39]} Rd7 {[%emt 0:01:33]} 35. Rf1 {[%emt 0:00:50]} Kf7 {[%emt 0:00:48]} 36. Qb3+ {[%emt 0:00:31]} (36. Rh1 $11) 36... Qd5 $17 {[%emt 0:00:02] Active counter play!} 37. Qc2 {[%emt 0:00:35]} Qd3 $36 {[%emt 0:00:14][%mdl 2048] Black is on the roll.} 38. Rh1 {[%emt 0:00:28]} Kg7 {[%emt 0:01:10]} 39. Re1 {[%emt 0:00:29][%cal Oe1e7]} Qxc2+ {[%emt 0:01:09]} 40. Kxc2 {[%emt 0:00:01] KR-KR. Black is a pawn up.} Kf7 {[%emt 0:00:02]} 41. Kc3 {[%emt 0:00:10]} Rd4 {[%emt 0:00:08]} 42. Rh1 {[%emt 0:00:26]} Kg6 {[%emt 0:00:30] Against Rh7} 43. Rh8 {[%emt 0:00:30]} b5 {[%emt 0:01:09]} 44. Ra8 {[%emt 0:00:42]} Rg4 {[%emt 0:00:48]} 45. Rg8+ $2 {[%emt 0:00:55]} (45. Kd3 $17) 45... Kf5 $19 {[%emt 0:00:09]} 46. Rc8 {[%emt 0:00:03]} Rg3+ {[%emt 0:01:00]} (46... Rxg2 47. Rxc5+ Ke4 48. Rxb5 $11) 47. Kc2 {[%emt 0:00:17]} Rxg2+ {[%emt 0:00:02]} 48. Kc3 {[%emt 0:00:12]} Rg3+ {[%emt 0:00:22]} 49. Kc2 {[%emt 0:00:09]} Rg5 {[%emt 0:00:14]} (49... Rg2+ 50. Kc3 $11) 50. Rxc5+ {[%emt 0:00:08]} Kg6 {[%emt 0:01:29]} (50... Kg4 $19 51. Rc7 a5) 51. Rc8 {[%emt 0:01:04]} (51. Rc7 $17) 51... a5 {[%emt 0:00:00]} (51... Rd5 $19 52. Rc6 Rd4) 52. Ra8 {[%emt 0:00:34]} a4 {[%emt 0:00:02]} 53. Kc3 $2 {[%emt 0:00:10][%mdl 8192]} (53. Kd3 $17) 53... Kf5 $2 {[%emt 0:00:56]} (53... Rd5 $19 54. b3 axb3 55. Kxb3 f5) 54. Rf8 {[%emt 0:00:37] [#]} (54. Ra6 $15) 54... Ke6 {[%emt 0:00:20]} ({Black should try} 54... Rg3+ $1 $19 55. Kb4 Rg2) 55. Kb4 $2 {[%emt 0:00:12] [#]} (55. Re8+ $17 Kd6 56. Rd8+ Kc6 57. Rc8+ Kd6 58. Rd8+) 55... Rg2 $2 {[%emt 0:00:44]} (55... Rd5 $1 $19 {White must now prevent ...f5.} 56. Re8+ Kf5) 56. Kxb5 $2 {[%emt 0:01:40][%mdl 8192]} (56. Kc3 $17) 56... Rxb2+ {[%emt 0:00:07]} 57. Kxa4 {[%emt 0:00:04]} Rxa2+ {[%emt 0:00:05]} 58. Kb3 {[%emt 0:00:04]} Rd2 {[%emt 0:00:06]} 59. Kc3 {[%emt 0:00:04]} Rd7 $2 {[%emt 0:00:10]} (59... Rd1 $19 {has better winning chances. ( -> ...f5)} 60. Kc2 Rd4) 60. Kc4 $2 {[%emt 0:00:35][%mdl 8192]} (60. Re8+ $17 Kf7 61. Re4) 60... f5 {[%emt 0:00:23] Black mates.} 61. Rh8 {[%emt 0:02:04]} Ke5 {[%emt 0:00:28]} 62. Rh1 {[%emt 0:00:12]} f4 {[%emt 0:00:02]} 63. Rh8 {[%emt 0:00:19]} Ke4 {[%emt 0:00:13]} 64. Re8+ {[%emt 0:00:29]} Kf3 {[%emt 0:00:07]} 65. Rf8 {[%emt 0:00:04]} Ke3 {[%emt 0:00:05]} 66. Re8+ {[%emt 0:00:20]} Kf2 {[%emt 0:00:06]} 67. Rf8 {[%emt 0:00:11]} f3 {[%emt 0:00:06]} 68. Rf6 {[%emt 0:00:02]} Ke2 {[%emt 0:00:21]} 69. Rf8 {[%emt 0:00:41]} Re7 {[%emt 0:00:24]} 70. Ra8 {[%emt 0:00:14]} f2 {[%emt 0:00:05]} 71. Ra2+ {[%emt 0:00:04]} Kf3 {[%emt 0:00:04]} 72. Ra3+ {[%emt 0:00:06]} Re3 {[%emt 0:00:09]} 73. Ra1 {[%emt 0:00:03]} Re1 {[%emt 0:00:06]} 74. Ra3+ {[%emt 0:00:05]} Ke4 {[%emt 0:00:08]} 75. Ra8 {[%emt 0:00:09] Quite a comeback for Black.   Weighted Error Value: White=0.73/Black=0.43  Loses game:     	White=3     	Black=1      Missed win:     	---       	Black=2      Mistake:       	White=11    	Black=8      Inaccurate:     	White=4     	Black=2      OK:         	White=13    	Black=17     Best:        	White=3     	Black=7      Strong:       	---       	Black=1} 0-1

[Event "22nd Indian Women chT 2025"]
[Site "Gujarat"]
[Date "2025.03.06"]
[Round "2.15"]
[White "Pragnya H G"]
[Black "Bharathakoti Sneha"]
[Result "1-0"]
[Annotator "RC"]
[ECO "B46"]
[WhiteElo "1998"]
[BlackElo "1781"]
[PlyCount "133"]
[EventDate "2025.03.03"]
[EventCountry "IND"]
[SourceTitle "playchess.com"]
[Source "ChessBase"]
[SourceQuality "1"]
[TimeControl "5400+30"]

1. e4 {[%emt 0:03:53]} c5 {[%emt 0:07:29]} 2. Nf3 {[%emt 0:00:58]} Nc6 {[%emt 0:00:43]} 3. d4 {[%emt 0:00:12]} cxd4 {[%emt 0:00:05]} 4. Nxd4 {[%emt 0:00:07]} e6 {[%emt 0:00:33]} 5. Nc3 {[%emt 0:02:00]} a6 {[%emt 0:00:13]} 6. Nxc6 {[%emt 0:01:59]} bxc6 {[%emt 0:00:06]} 7. Bd3 {[%emt 0:00:13]} Nf6 {[%emt 0:08:33]} 8. O-O {[%emt 0:09:18]} d5 {[%emt 0:04:29]} 9. e5 {[%emt 0:11:04]} Nd7 {[%emt 0:03:07]} 10. Re1 {[%emt 0:07:34]} a5 {[%emt 0:06:09]} 11. Qg4 {[%emt 0:14:13]} Ba6 {[%emt 0:12:26]} 12. Bxa6 {[%emt 0:04:03]} Rxa6 {[%emt 0:00:06]} 13. f4 {[%emt 0:01:26]} Qb6+ {[%emt 0:10:16]} 14. Kh1 {[%emt 0:02:42]} Qf2 {[%emt 0:04:04]} 15. Qd1 {[%emt 0:03:08]} Bc5 {[%emt 0:05:49]} 16. Re2 {[%emt 0:03:31]} Qh4 {[%emt 0:03:56]} 17. Qf1 {[%emt 0:08:23]} O-O {[%emt 0:09:19]} 18. g3 {[%emt 0:04:35]} Qg4 {[%emt 0:03:16]} 19. Kg2 {[%emt 0:03:09]} Raa8 {[%emt 0:01:31]} 20. Qf3 {[%emt 0:07:19]} Qxf3+ {[%emt 0:03:54]} 21. Kxf3 {[%emt 0:00:01]} a4 {[%emt 0:00:17]} 22. Nd1 {[%emt 0:03:38]} f6 {[%emt 0:02:57]} 23. exf6 {[%emt 0:00:15]} Rxf6 {[%emt 0:00:05]} 24. Kg2 {[%emt 0:01:03]} Rb8 {[%emt 0:01:57]} 25. b3 {[%emt 0:02:41]} a3 {[%emt 0:02:30]} 26. c3 {[%emt 0:01:30]} Ra8 {[%emt 0:03:26]} 27. Be3 {[%emt 0:00:19]} h5 {[%emt 0:01:34]} 28. b4 {[%emt 0:03:09]} Bxe3 {[%emt 0:04:07]} 29. Nxe3 {[%emt 0:00:01]} Rff8 {[%emt 0:01:03]} 30. Nc2 {[%emt 0:00:17]} Kf7 {[%emt 0:00:47]} 31. Rae1 {[%emt 0:00:47]} Rfe8 {[%emt 0:00:29]} 32. Nd4 {[%emt 0:00:13]} Nf8 {[%emt 0:00:38]} 33. Nxc6 {[%emt 0:00:45]} Rac8 {[%emt 0:00:27]} 34. Ne5+ {[%emt 0:01:53]} Kf6 {[%emt 0:00:05]} 35. Re3 {[%emt 0:00:17]} Red8 {[%emt 0:00:24]} 36. Nf3 {[%emt 0:00:21]} Rd6 {[%emt 0:00:44]} 37. Nd4 {[%emt 0:00:37]} Re8 {[%emt 0:00:22]} 38. Rb1 {[%emt 0:01:10]} Nd7 {[%emt 0:00:09]} 39. Rb3 {[%emt 0:00:38]} Ra6 {[%emt 0:01:18]} 40. Nb5 {[%emt 0:00:23]} Rc8 {[%emt 0:00:17]} 41. Rxa3 {[%emt 0:00:37]} Rxa3 {[%emt 0:00:31]} 42. Nxa3 {[%emt 0:00:02]} Ra8 {[%emt 0:00:06]} 43. Nc2 {[%emt 0:00:27]} Rxa2 {[%emt 0:00:03]} 44. Re2 {[%emt 0:00:01]} e5 {[%emt 0:00:44]} 45. Nd4 {[%emt 0:01:30]} Ra1 {[%emt 0:01:12]} 46. fxe5+ {[%emt 0:00:36]} Nxe5 {[%emt 0:00:01]} 47. b5 {[%emt 0:00:25]} Rb1 {[%emt 0:00:42]} 48. Rf2+ {[%emt 0:00:15]} Ke7 {[%emt 0:00:53]} 49. Rf5 {[%emt 0:00:25]} Rb2+ {[%emt 0:00:23]} 50. Kh3 {[%emt 0:00:39]} Kd6 {[%emt 0:00:38]} 51. Rxh5 {[%emt 0:00:13]} g6 {[%emt 0:00:08]} 52. Rh8 {[%emt 0:00:26]} Nd3 {[%emt 0:00:31]} 53. Rd8+ {[%emt 0:00:36]} Ke5 {[%emt 0:00:52]} 54. Re8+ {[%emt 0:00:35]} Kf6 {[%emt 0:00:11]} 55. Re2 {[%emt 0:00:42]} Rb1 {[%emt 0:00:34]} 56. Rd2 {[%emt 0:00:34]} Nc5 {[%emt 0:00:25]} 57. Rf2+ {[%emt 0:00:33]} Ke5 {[%emt 0:00:41]} 58. Rf8 {[%emt 0:00:26]} Ne4 {[%emt 0:00:27]} 59. Rc8 {[%emt 0:00:28]} Rb2 {[%emt 0:00:42]} 60. Rc6 {[%emt 0:00:27]} Nd6 {[%emt 0:00:32]} 61. Rb6 {[%emt 0:00:42]} Rb1 {[%emt 0:00:17]} 62. Kg4 {[%emt 0:00:22]} Rc1 {[%emt 0:00:06]} 63. Rc6 {[%emt 0:00:26]} Rb1 {[%emt 0:00:29]} 64. Kg5 {[%emt 0:00:27]} Ne4+ {[%emt 0:00:58]} 65. Kxg6 {[%emt 0:00:07]} Nxc3 {[%emt 0:00:06]} 66. Nf3+ {[%emt 0:00:04]} Ke4 {[%emt 0:00:09]} 67. Nd2+ {[%emt 0:00:09]} 1-0

[Event "22nd Indian Women chT 2025"]
[Site "Gujarat"]
[Date "2025.03.06"]
[Round "2.16"]
[White "Aishwarya N"]
[Black "Rajasurya, J.."]
[Result "0-1"]
[Annotator "NA RC"]
[ECO "E73"]
[WhiteElo "1547"]
[BlackElo "1729"]
[PlyCount "100"]
[EventDate "2025.03.03"]
[EventCountry "IND"]
[SourceTitle "playchess.com"]
[Source "ChessBase"]
[SourceQuality "1"]
[TimeControl "5400+30"]

1. d4 {[%emt 0:11:02]} Nf6 {[%emt 0:00:10]} 2. c4 {[%emt 0:01:26]} g6 {[%emt 0:00:08]} 3. Nc3 {[%emt 0:00:19]} Bg7 {[%emt 0:00:12]} 4. e4 {[%emt 0:00:41]} d6 {[%emt 0:00:00]} 5. Be2 {[%emt 0:00:49]} Nbd7 {[%emt 0:00:25]} 6. h3 {[%emt 0:00:46]} e5 {[%emt 0:00:35]} 7. d5 {[%emt 0:00:38]} O-O {[%emt 0:03:30]} 8. Be3 {[%emt 0:06:05]} Ne8 {[%emt 0:05:04]} 9. g4 {[%emt 0:01:41]} Qe7 {[%emt 0:05:57]} 10. Nf3 {[%emt 0:02:43]} a5 {[%emt 0:04:22]} 11. Qc2 {[%emt 0:02:33]} Nc5 {[%emt 0:00:51]} 12. O-O-O {[%emt 0:03:59]} f5 {[%emt 0:05:53]} 13. Rdg1 {[%emt 0:08:58]} f4 {[%emt 0:05:29]} 14. Bd2 {[%emt 0:04:17]} h6 {[%emt 0:18:09]} 15. h4 {[%emt 0:08:38]} Bd7 {[%emt 0:16:08]} 16. Nb5 {[%emt 0:03:56]} c6 {[%emt 0:01:22]} 17. Nc3 {[%emt 0:02:37]} Nc7 {[%emt 0:00:26]} 18. h5 {[%emt 0:03:08]} g5 {[%emt 0:00:23]} 19. Re1 {[%emt 0:05:29]} Rfc8 {[%emt 0:12:29]} 20. Nh2 {[%emt 0:06:16]} N7a6 {[%emt 0:03:57]} 21. a3 {[%emt 0:03:27]} a4 {[%emt 0:00:47]} 22. Kb1 {[%emt 0:01:35]} Nc7 {[%emt 0:02:54]} 23. f3 {[%emt 0:03:50]} Nb3 {[%emt 0:01:55]} 24. Bd1 {[%emt 0:02:34]} b5 {[%emt 0:01:47]} 25. dxc6 {[%emt 0:01:42]} Bxc6 {[%emt 0:00:17]} 26. Be2 {[%emt 0:01:02]} Qf7 {[%emt 0:01:50]} 27. Na2 {[%emt 0:01:28]} bxc4 {[%emt 0:01:29]} 28. Nb4 {[%emt 0:02:59]} Bb5 {[%emt 0:00:26]} 29. Bc3 {[%emt 0:00:50]} Na6 {[%emt 0:02:27]} 30. Rd1 {[%emt 0:00:24]} Nd4 {[%emt 0:00:45]} 31. Qd2 {[%emt 0:00:24]} Nc5 {[%emt 0:00:13]} 32. Qe1 {[%emt 0:00:50]} Rab8 {[%emt 0:00:53]} 33. Qf2 {[%emt 0:00:51]} Bd7 {[%emt 0:01:56]} 34. Rhg1 {[%emt 0:01:11]} Be6 {[%emt 0:00:24]} 35. Nf1 {[%emt 0:00:56]} d5 {[%emt 0:03:04]} 36. exd5 {[%emt 0:01:35]} Bxd5 {[%emt 0:00:07]} 37. Nxd5 {[%emt 0:00:25]} Qxd5 {[%emt 0:00:09]} 38. Nd2 {[%emt 0:00:12]} Ncb3 {[%emt 0:01:27]} 39. Nxc4 {[%emt 0:02:26]} Rxc4 {[%emt 0:00:15]} 40. Bxc4 {[%emt 0:00:01]} Qxc4 {[%emt 0:00:09]} 41. Rg2 {[%emt 0:00:53]} Nb5 {[%emt 0:00:19]} 42. Bb4 {[%emt 0:00:33]} e4 {[%emt 0:01:04]} 43. fxe4 {[%emt 0:01:47]} Qxe4+ {[%emt 0:00:51]} 44. Ka2 {[%emt 0:00:43]} Qc4 {[%emt 0:00:29]} 45. Kb1 {[%emt 0:00:12]} N5d4 {[%emt 0:00:36]} 46. Rh2 {[%emt 0:01:09]} Re8 {[%emt 0:00:21]} 47. Qf1 {[%emt 0:00:31]} Ne2 {[%emt 0:00:34]} 48. Re1 {[%emt 0:01:54]} Qd3+ {[%emt 0:00:24]} 49. Ka2 {[%emt 0:00:04]} f3 {[%emt 0:00:10]} 50. Rf2 {[%emt 0:01:14]} Qc2 {[%emt 0:00:18]} 0-1